[Event "Polish Youth 1st League 2022"]
[Site "Lublin"]
[Date "2022.06.29"]
[Round "5.23"]
[White "Starosta, Martyna"]
[Black "Hertlein, Irena"]
[Result "0-1"]
[ECO "B36"]
[WhiteElo "1918"]
[BlackElo "1873"]
[Annotator "TA"]
[PlyCount "90"]
[EventDate "2022.06.24"]
[EventType "team-tourn"]
[EventCountry "POL"]
[SourceTitle "playchess.com"]
[Source "ChessBase"]
[SourceQuality "1"]
[TimeControl "40/5400+30:1800+30"]

{[%evp 18,90,42,31,54,57,41,34,59,53,72,63,79,76,72,62,79,74,80,-37,-21,-30,-11,-162,-161,-209,-205,-212,-175,-389,-405,-453,-446,-469,-463,-450,-454,-422,-406,-525,-393,-787,-619,-2436,-671,-29980,-29981,-29981,-29982,-29982,-29983,-29983,0,0,0,-29983,-29984,-29984,-29985,-29985,-29986,-29986,-29986,-29986,-29986,-29986,-29987,-29987,-29988,-29989,-29990,-29991,-29992,-29993,-29994]} 1. e4 {[%emt 0:00:02]} c5 {[%emt 0:00:07]} 2. Nf3 {[%emt 0:00:06]} Nc6 {[%emt 0:00:12]} 3. d4 {[%emt 0:00:05]} cxd4 {[%emt 0:00:10]} 4. Nxd4 {[%emt 0:00:05]} g6 {[%emt 0:00:07]} 5. c4 {[%emt 0:00:06]} Nf6 {[%emt 0:00:05]} 6. Nc3 {[%emt 0:00:05]} d6 {[%emt 0:00:05]} 7. Be2 {[%emt 0:00:56]} Nxd4 {[%emt 0:00:08]} 8. Qxd4 {[%emt 0:00:06]} Bg7 {[%emt 0:00:05]} 9. Be3 {[%emt 0:00:06]} O-O {[%emt 0:00:07]} 10. Qd2 {[%emt 0:00:03]} a5 {[%emt 0:00:16][%cal Ba7a5,Ba5a4][%mdl 32] B36: Sicilian: Maroczy Bind: Gurgenidze System.} 11. O-O {[%emt 0:01:56]} a4 {[%emt 0:00:20]} 12. Rad1 {[%emt 0:00:11] Recently 12.Bd4 got a lot of attention.} Be6 {[%emt 0:00:23] White is slightly better.} 13. f4 {[%emt 0:00:07]} Qa5 {[%emt 0:03:42] Inhibits f5.} 14. Bd4 {[%emt 0:13:13]} Rfc8 {[%emt 0:06:29] [#]} 15. b3 {[%emt 0:03:10]} axb3 {[%emt 0:01:22]} 16. axb3 {[%emt 0:00:14]} Qb4 {[%emt 0:12:55]} 17. f5 {[%emt 0:07:09]} Bd7 {[%emt 0:13:21] [#]} 18. g4 $146 {[%emt 0:23:10]} (18. Bxf6 $16 Bxf6 19. Nd5 Qxd2 20. Nxf6+ exf6 21. Rxd2) ({Predecessor:} 18. Bxf6 Bxf6 19. Nd5 Qxd2 20. Nxf6+ exf6 21. Rxd2 Bc6 22. fxg6 hxg6 23. Rxf6 Bxe4 24. Rfxd6 {1-0 (52) Tari,A (2660)-Mekhitarian,K (2562) Chess.com INT 2022}) 18... Bc6 $15 {[%emt 0:13:04]} (18... Qxb3 19. Rb1 Qa3 20. g5 (20. Rxb7 Rcb8 $11) 20... Nxe4 21. Nxe4 Bxf5 22. Ra1 $14 (22. Rxb7 Bxe4 23. Rxe7 Re8 $11)) 19. Qf4 {[%emt 0:05:15]} Rf8 {[%emt 0:13:07]} 20. Qf3 $2 {[%emt 0:15:12]} (20. g5 $11 {and White has nothing to worry.} Nh5 21. Qe3 (21. Bxh5 $2 Bxd4+ 22. Rxd4 Qxc3 $19) 21... Bxd4 22. Qxd4) 20... Nxg4 $1 $19 {[%emt 0:06:06]} (20... Qxb3 21. Nd5 Qxf3 22. Nxe7+ Kh8 23. Bxf3 $14 (23. Rxf3 Nxe4 24. f6 Bh6 $11)) 21. fxg6 {[%emt 0:12:03]} (21. Bxg7 {might work better.} Kxg7 22. Nd5 Bxd5 23. Rxd5 (23. Qxg4 $2 Bc6 $19)) 21... Bxd4+ {[%emt 0:11:43]} 22. Rxd4 {[%emt 0:00:06]} hxg6 {[%emt 0:14:53] Dancing on a razor blade.} 23. Qxg4 $2 {[%emt 0:06:06]} (23. Nd5 {only move.} Bxd5 24. Rxd5) 23... Qb6 {[%emt 0:02:24]} (23... Qxc3 $2 24. Rd3 Qb2 25. Re3 $19) 24. Rfd1 {[%emt 0:06:11] Nd5 is the strong threat.} e5 {[%emt 0:00:06][%mdl 64] Pin} 25. Nd5 {[%emt 0:00:57]} ({But not} 25. c5 Qxc5 26. b4 Qb6 $19) 25... Bxd5 {[%emt 0:00:08]} 26. exd5 {[%emt 0:00:09]} exd4 {[%emt 0:00:16]} 27. Bd3 {[%emt 0:00:18][%cal Od3g6]} Kg7 {[%emt 0:01:18]} ({Not} 27... Qxb3 $2 28. Bxg6 Qe3+ 29. Kh1 $19) 28. Rf1 {[%emt 0:00:25][%cal Od3g6]} Rae8 {[%emt 0:00:58] Strongly threatening ...Re3.} 29. Rf3 $2 {[%emt 0:05:53]} (29. Qg5 Qxb3 30. Qf6+ Kh7 31. Rf4 Qd1+ 32. Bf1) 29... Qa7 {[%emt 0:00:28]} 30. Rh3 {[%emt 0:01:15]} Re3 {[%emt 0:00:25]} (30... Re1+ $142 31. Bf1 d3+ 32. Kg2 Qa2+ 33. Kg1 d2) 31. Bxg6 {[%emt 0:00:23]} fxg6 {[%emt 0:00:29]} 32. Qd7+ {[%emt 0:00:11]} Rf7 {[%emt 0:00:26]} 33. Rh7+ {[%emt 0:00:19]} Kxh7 {[%emt 0:00:01]} 34. Qxf7+ {[%emt 0:00:07]} Kh8 {[%emt 0:01:03]} 35. Qf8+ {[%emt 0:00:14]} Kh7 {[%emt 0:00:04]} 36. Qf7+ {[%emt 0:00:04]} Kh6 {[%emt 0:00:37] Black mates.} 37. Qf8+ {[%emt 0:00:42]} Kh5 {[%emt 0:00:53]} 38. Qh8+ {[%emt 0:00:17]} Kg4 {[%emt 0:00:28]} 39. Qc8+ {[%emt 0:01:16]} Kf4 {[%emt 0:00:21]} 40. Qf8+ {[%emt 0:00:00] [#]} Ke4 $1 {[%emt 0:00:00]} 41. Qe8+ {[%emt 0:01:04]} Kf3 {[%emt 0:03:51][%cal Ra7a1]} 42. Qf7+ {[%emt 0:00:19]} Ke2 {[%emt 0:00:04]} 43. Qf2+ {[%emt 0:00:29]} Kd1 {[%emt 0:02:03]} 44. Qb2 {[%emt 0:00:10]} Re1+ {[%emt 0:00:23]} 45. Kf2 {[%emt 0:00:04]} d3+ {[%emt 0:00:08] Weighted Error Value: White=1.07/Black=0.61} 0-1

[Event "Polish Youth 1st League 2022"]
[Site "Lublin"]
[Date "2022.06.29"]
[Round "5.24"]
[White "Duda, Aleksandra"]
[Black "Kulczycka, Zofia"]
[Result "1/2-1/2"]
[ECO "D02"]
[WhiteElo "1453"]
[BlackElo "1564"]
[Annotator "NA RC"]
[PlyCount "92"]
[EventDate "2022.06.24"]
[EventType "team-tourn"]
[EventCountry "POL"]
[SourceTitle "playchess.com"]
[Source "ChessBase"]
[SourceQuality "1"]
[TimeControl "40/5400+30:1800+30"]

1. d4 {[%emt 0:00:03]} Nf6 {[%emt 0:00:09]} 2. Bf4 {[%emt 0:00:06]} d5 {[%emt 0:00:12]} 3. Nf3 {[%emt 0:00:07]} e6 {[%emt 0:00:11]} 4. e3 {[%emt 0:00:09]} c5 {[%emt 0:00:07]} 5. c3 {[%emt 0:00:07]} Bd6 {[%emt 0:00:09]} 6. Bg3 {[%emt 0:00:15]} O-O {[%emt 0:00:15]} 7. Bd3 {[%emt 0:00:34]} Qc7 {[%emt 0:00:27]} 8. O-O {[%emt 0:00:56]} Nbd7 {[%emt 0:00:30]} 9. Nbd2 {[%emt 0:02:01]} e5 {[%emt 0:00:21]} 10. dxe5 {[%emt 0:01:46]} Nxe5 {[%emt 0:00:23]} 11. Nxe5 {[%emt 0:00:07]} Bxe5 {[%emt 0:00:14]} 12. Bxe5 {[%emt 0:01:17]} Qxe5 {[%emt 0:00:10]} 13. Nf3 {[%emt 0:00:29]} Qh5 {[%emt 0:04:30]} 14. c4 {[%emt 0:04:14]} b6 {[%emt 0:12:18]} 15. Qb3 {[%emt 0:07:47]} Bb7 {[%emt 0:03:37]} 16. Be2 {[%emt 0:04:27]} Qh6 {[%emt 0:06:20]} 17. Rfd1 {[%emt 0:03:16]} dxc4 {[%emt 0:07:28]} 18. Qxc4 {[%emt 0:00:19]} Rad8 {[%emt 0:01:21]} 19. b4 {[%emt 0:07:16]} cxb4 {[%emt 0:04:29]} 20. Qxb4 {[%emt 0:00:14]} Nd5 {[%emt 0:04:20]} 21. Qb3 {[%emt 0:03:35]} Qg6 {[%emt 0:15:59]} 22. Rac1 {[%emt 0:07:04]} Qe4 23. Rd4 {[%emt 0:04:13]} Qe7 {[%emt 0:05:48]} 24. Rcd1 {[%emt 0:01:15]} Nf6 {[%emt 0:01:38]} 25. h3 {[%emt 0:05:50]} h6 {[%emt 0:02:12]} 26. Nh4 {[%emt 0:02:57]} Be4 {[%emt 0:08:21]} 27. Bf3 {[%emt 0:04:20]} Bh7 {[%emt 0:00:36]} 28. g3 {[%emt 0:02:09]} Rc8 {[%emt 0:01:12]} 29. Rc4 {[%emt 0:04:57]} Rc5 {[%emt 0:00:55]} 30. Rxc5 {[%emt 0:07:34]} Qxc5 {[%emt 0:00:15]} 31. Rd4 {[%emt 0:02:29]} Qc1+ {[%emt 0:03:32]} 32. Qd1 {[%emt 0:01:13]} Qxd1+ {[%emt 0:00:27]} 33. Rxd1 {[%emt 0:00:09]} g5 {[%emt 0:00:36]} 34. Ng2 {[%emt 0:00:23]} Rc8 {[%emt 0:00:30]} 35. Ne1 {[%emt 0:03:17]} Rc3 {[%emt 0:01:07]} 36. a4 {[%emt 0:02:00]} Ra3 {[%emt 0:01:50]} 37. Bc6 {[%emt 0:00:31]} Ne4 {[%emt 0:07:45]} 38. Rd4 {[%emt 0:05:38]} Nc5 {[%emt 0:01:52]} 39. e4 {[%emt 0:01:59]} Ra1 {[%emt 0:05:22]} 40. Kf1 {[%emt 0:00:00]} Kg7 {[%emt 0:00:00]} 41. Ke2 {[%emt 0:04:01]} Ra2+ {[%emt 0:05:24]} 42. Kf3 {[%emt 0:04:06]} Ra3+ {[%emt 0:06:09]} 43. Kg2 {[%emt 0:01:10]} Rc3 {[%emt 0:01:50]} 44. Bd5 {[%emt 0:04:05]} Ra3 {[%emt 0:01:40]} 45. Bc6 {[%emt 0:00:28]} Rc3 {[%emt 0:02:20]} 46. Bd5 {[%emt 0:00:28]} Ra3 {[%emt 0:10:05]} 1/2-1/2

[Event "Polish Youth 1st League 2022"]
[Site "Lublin"]
[Date "2022.06.29"]
[Round "5.25"]
[White "Wojdak, Jan"]
[Black "Klim, Filip"]
[Result "1-0"]
[ECO "D31"]
[WhiteElo "2144"]
[BlackElo "2015"]
[Annotator "TA"]
[PlyCount "77"]
[EventDate "2022.06.24"]
[EventType "team-tourn"]
[EventCountry "POL"]
[SourceTitle "playchess.com"]
[Source "ChessBase"]
[SourceQuality "1"]
[TimeControl "40/5400+30:1800+30"]

{[%evp 9,77,7,0,2,8,5,4,9,12,8,14,-31,52,0,0,0,53,47,40,58,44,37,34,33,62,18,41,45,57,-6,33,35,59,55,65,73,239,222,237,244,218,231,260,277,267,271,264,233,214,220,400,408,372,340,310,0,424,420,1068,1002,1915,543,781,788,714,741,701,681,679,645]} 1. d4 {[%emt 0:00:04]} d5 {[%emt 0:00:19]} 2. c4 {[%emt 0:00:04]} e6 {[%emt 0:00:37]} 3. Nc3 {[%emt 0:00:34]} a6 {[%emt 0:01:12]} 4. cxd5 {[%emt 0:00:06]} exd5 {[%emt 0:00:04]} 5. g3 {[%emt 0:00:03]} Nf6 {[%emt 0:00:49]} 6. Bg2 {[%emt 0:00:11] D31: Queen's Gambit Declined: Semi-Slav without ...Nf6 (+ Marshall Gambit and Noteboom) and Exchange Variation lines without ...Nf6.} Be7 {[%emt 0:01:57] [#]} 7. Nh3 $146 {[%emt 0:00:29][%cal Bg1h3,Bh3f4,Bf4d5][%mdl 32]} ({Predecessor:} 7. Bg5 Be6 8. Nf3 Nbd7 9. O-O O-O 10. Ne5 c6 11. Nxd7 Qxd7 12. a3 Bh3 13. e3 Bxg2 14. Kxg2 {0-1 (51) King,A (2276)-Sevian,S (2647) Chess.com INT 2021}) 7... O-O {[%emt 0:02:15]} 8. O-O {[%emt 0:00:33] The position is equal.} Re8 {[%emt 0:03:20]} 9. Kh1 {[%emt 0:04:26]} c6 {[%emt 0:04:47]} 10. f3 {[%emt 0:01:51][%cal Bf2f3,Bf3e4,Be4d5][%mdl 32]} b5 {[%emt 0:08:38]} ({Better is} 10... c5 $1 $15) 11. a3 {[%emt 0:03:21]} (11. Nf2 $14) 11... Ra7 {[%emt 0:03:04]} 12. Nf4 {[%emt 0:05:15]} c5 {[%emt 0:09:17]} (12... a5 $11) 13. dxc5 $14 {[%emt 0:07:27][%cal Rf4d5]} d4 {[%emt 0:01:48]} 14. Ne4 {[%emt 0:00:10]} Nxe4 {[%emt 0:03:25]} 15. fxe4 {[%emt 0:00:06]} Bxc5 {[%emt 0:23:14]} 16. Nd5 {[%emt 0:06:47]} Be6 {[%emt 0:00:30]} 17. b4 {[%emt 0:00:30] White is more active.} Bb6 {[%emt 0:00:30]} 18. Bf4 {[%emt 0:00:30]} Nc6 {[%emt 0:00:30]} 19. Rc1 {[%emt 0:00:30]} (19. a4 $1 $14) 19... Bxd5 {[%emt 0:00:30]} (19... Ne7 $5 {[%cal Re7d5]} 20. Bg5 f6 21. Bxf6 gxf6 22. Nxf6+ Kh8 $11) 20. exd5 {[%emt 0:00:30]} Ne5 {[%emt 0:00:30]} 21. Bxe5 {[%emt 0:00:30]} Rxe5 {[%emt 0:00:30]} 22. Rc6 {[%emt 0:00:30]} Rd7 $2 {[%emt 0:00:30] [#]} (22... g6 $16 {was worth a try.}) 23. Bh3 $1 $18 {[%emt 0:27:01]} Rexd5 {[%emt 0:27:00]} (23... Rdxd5 $2 24. Rc8 $18) 24. Bxd7 {[%emt 0:01:45]} Rxd7 {[%emt 0:00:13]} 25. Qd3 {[%emt 0:01:31]} Re7 {[%emt 0:02:09]} 26. Qf3 {[%emt 0:02:41][%cal Oc6b6]} h6 {[%emt 0:02:05]} 27. Rfc1 {[%emt 0:02:18] [#] aiming for Rc8.} Kh7 {[%emt 0:01:27]} 28. Qf5+ {[%emt 0:06:02]} g6 {[%emt 0:00:09]} 29. Qf3 {[%emt 0:00:29]} f5 $2 {[%emt 0:02:45]} (29... Bc7 30. Rxa6 Be5) 30. Rc8 {[%emt 0:02:13]} Qd6 {[%emt 0:00:48]} 31. R1c6 {[%emt 0:04:20]} Qd7 {[%emt 0:00:02]} 32. Rc1 $2 $40 {[%emt 0:03:47][%mdl 128] White is up to no good.} ({Don't do} 32. Qb3 Bd8 33. Rc5 (33. Qa2 d3 $16) 33... Rg7) ({White should play} 32. g4 $18 {Hoping for gxf5.} Rf7 33. gxf5 Rxf5 34. Qe4) 32... d3 $2 {[%emt 0:00:59][%mdl 8192]} (32... Qd6 $1 $11 {and Black is okay.}) 33. Qxd3 {[%emt 0:01:40]} Bd4 {[%emt 0:00:14]} (33... Qb7+ $142 34. Qf3 Qd7) 34. R8c7 {[%emt 0:00:49] White is clearly winning.} Qd5+ {[%emt 0:00:19]} 35. Qf3 {[%emt 0:00:19]} (35. e4 $142 Qf7 36. Rxe7 (36. Qxd4 Rxc7 37. Rxc7 Qxc7 $11) 36... Qxe7 37. Qxd4) 35... Qd6 {[%emt 0:00:40]} 36. Qc6 {[%emt 0:02:36]} Qxc6+ {[%emt 0:00:50]} 37. R1xc6 {[%emt 0:00:08]} Rxc7 {[%emt 0:00:16]} 38. Rxc7+ {[%emt 0:00:04]} Kg8 {[%emt 0:00:03]} 39. Rc6 {[%emt 0:00:08][%csl LRa6,LRg6] Weighted Error Value: White=0.36/Black=0.45} 1-0

[Event "Polish Youth 1st League 2022"]
[Site "Lublin"]
[Date "2022.06.29"]
[Round "5.26"]
[White "Bartodziej, Bartosz"]
[Black "Jendrowiak, Maciej"]
[Result "1-0"]
[ECO "C50"]
[WhiteElo "1902"]
[BlackElo "1713"]
[Annotator "TA"]
[PlyCount "81"]
[EventDate "2022.06.24"]
[EventType "team-tourn"]
[EventCountry "POL"]
[SourceTitle "playchess.com"]
[Source "ChessBase"]
[SourceQuality "1"]
[TimeControl "40/5400+30:1800+30"]

{[%evp 9,81,15,39,23,31,15,29,30,29,29,26,4,0,-10,0,0,0,0,0,0,0,0,-3,-18,0,-14,-3,-22,-14,-68,26,14,25,-2,-1,-25,-20,-28,0,-33,-6,-27,-13,-31,-11,-13,-6,-16,252,137,1195,1187,1814,1826,1496,1496,1291,1334,1231,1229,29979,29980,29989,29990,29990,29991,29991,29992,29996,29997,29997,1125,29997,29990]} 1. e4 {[%emt 0:00:03]} e5 {[%emt 0:00:16]} 2. Nf3 {[%emt 0:00:03]} Nc6 {[%emt 0:00:07]} 3. Bc4 {[%emt 0:00:04]} Bc5 {[%emt 0:00:10]} 4. d3 {[%emt 0:00:20]} d6 {[%emt 0:00:15]} 5. c3 {[%emt 0:00:06]} Bb6 {[%emt 0:00:14]} 6. O-O {[%emt 0:00:47] C50: Hungarian Defence and Giuoco Pianissimo.} h6 {[%emt 0:00:28]} 7. Bb3 {[%emt 0:25:28] 7.b4 is setting a new trend.} Nge7 {[%emt 0:01:56]} 8. Nbd2 {[%emt 0:04:00] White has an edge.} O-O {[%emt 0:00:59]} 9. Nc4 {[%emt 0:01:19] [#]} Ng6 $146 {[%emt 0:01:14]} ({Predecessor:} 9... Kh8 10. h3 f5 11. Nxb6 axb6 12. Ng5 d5 13. exd5 Nxd5 14. Qh5 Kg8 15. Nf3 Kh7 {0-1 (55) Grimaldi,A (2053)-Lain,L (2254) Civitanova Marche 2021}) 10. Nxb6 {[%emt 0:03:43]} axb6 {[%emt 0:00:55]} 11. h3 {[%emt 0:10:59]} Kh8 {[%emt 0:02:27]} 12. d4 {[%emt 0:19:29]} f5 {[%emt 0:03:50]} 13. exf5 {[%emt 0:08:29]} Bxf5 {[%emt 0:01:35]} 14. dxe5 {[%emt 0:02:33]} Ngxe5 {[%emt 0:01:30]} 15. Nxe5 {[%emt 0:00:59]} Nxe5 {[%emt 0:00:09]} 16. Be3 {[%emt 0:05:46]} Qh4 {[%emt 0:01:11][%cal Of5h3] aiming for ...Bxh3!} 17. f4 $1 {[%emt 0:02:52]} Nd3 {[%emt 0:03:09]} 18. Qd2 $1 {[%emt 0:01:48]} Rae8 {[%emt 0:02:17][%cal Of5h3]} 19. Bc2 {[%emt 0:07:21]} (19. Bc4 $11 Nc5 20. Bxc5 bxc5 21. Rae1) 19... Qg3 {[%emt 0:21:02]} (19... Nxb2 $15 20. Bf2 Nc4) 20. Rf3 $11 {[%emt 0:00:44]} Qg6 {[%emt 0:00:06]} 21. Bxd3 {[%emt 0:01:18]} (21. Bxb6 $5 {[%cal Rf3d3]} Nxb2 22. Bxf5 Rxf5 23. Qxb2 cxb6 24. Qxb6 $14) 21... Bxd3 {[%emt 0:00:07]} 22. Qf2 {[%emt 0:01:15]} (22. Kh2 $5 {[%cal Rf3g3]}) 22... Be4 {[%emt 0:04:00]} 23. Rg3 {[%emt 0:00:04]} Qf5 {[%emt 0:00:12]} 24. Rf1 {[%emt 0:01:29]} c5 {[%emt 0:02:17]} 25. Qd2 {[%emt 0:01:18]} Rd8 {[%emt 0:01:07]} 26. b4 {[%emt 0:00:26]} Rfe8 {[%emt 0:12:42]} 27. Rd1 {[%emt 0:00:38]} Qe6 {[%emt 0:01:56]} 28. Kh2 {[%emt 0:00:32]} Qc4 $2 {[%emt 0:00:27][%mdl 8192] [#]} (28... Kh7 $11) 29. f5 $1 $18 {[%emt 0:00:28]} Kh7 {[%emt 0:01:05][%mdl 8192] [#] This costs Black the game.} (29... Bxf5 $16 30. Bxh6 g6) 30. Bxh6 $1 {[%emt 0:00:30][%mdl 512]} Rg8 {[%emt 0:12:11] [#]} (30... Qf7 31. Rxg7+) 31. Bxg7 $1 {[%emt 0:00:10][%mdl 512]} Rxg7 {[%emt 0:01:25]} 32. Rxg7+ {[%emt 0:00:01][%mdl 64] Remove Defender} Kxg7 {[%emt 0:00:01]} 33. Qg5+ {[%emt 0:00:08]} Kf7 {[%emt 0:00:04]} 34. Qxd8 {[%emt 0:00:06][%mdl 4096] Endgame KQR-KQB} Qe2 {[%emt 0:00:24]} 35. Qd7+ {[%emt 0:00:09]} Kf6 {[%emt 0:00:53]} 36. Rxd6+ {[%emt 0:00:21]} Ke5 {[%emt 0:00:16]} 37. Qe7+ {[%emt 0:01:22]} Kf4 {[%emt 0:00:06]} 38. Qh4+ {[%emt 0:00:12]} Ke5 {[%emt 0:00:14]} 39. Qg3+ {[%emt 0:00:30]} Kxf5 {[%emt 0:00:06]} 40. Qg4+ {[%emt 0:00:00]} (40. Qg6+ $142 Kf4 41. Qh6+ Kf5 42. Qf6#) 40... Ke5 {[%emt 0:00:00]} 41. Qxe2 {[%emt 0:00:08] Weighted Error Value: White=0.10 (very precise) /Black=0.72} 1-0

[Event "Polish Youth 1st League 2022"]
[Site "Lublin"]
[Date "2022.06.29"]
[Round "5.27"]
[White "Wierzbicki, Dawid"]
[Black "Nawalaniec, Adam"]
[Result "1/2-1/2"]
[ECO "C00"]
[WhiteElo "1556"]
[BlackElo "1740"]
[Annotator "NA RC"]
[PlyCount "106"]
[EventDate "2022.06.24"]
[EventType "team-tourn"]
[EventCountry "POL"]
[SourceTitle "playchess.com"]
[Source "ChessBase"]
[SourceQuality "1"]
[TimeControl "40/5400+30:1800+30"]

1. e4 {[%emt 0:00:05]} e6 {[%emt 0:00:05]} 2. c4 {[%emt 0:03:33]} d5 {[%emt 0:01:49]} 3. exd5 {[%emt 0:00:49]} exd5 {[%emt 0:00:32]} 4. d4 {[%emt 0:00:16]} Nf6 {[%emt 0:03:27]} 5. Nf3 {[%emt 0:00:57]} Bb4+ {[%emt 0:10:05]} 6. Bd2 {[%emt 0:01:25]} Qe7+ {[%emt 0:03:50]} 7. Be2 {[%emt 0:01:46]} O-O {[%emt 0:06:09]} 8. O-O {[%emt 0:02:18]} Re8 {[%emt 0:03:48]} 9. Ne5 {[%emt 0:17:20]} Bxd2 {[%emt 0:07:44]} 10. Nxd2 {[%emt 0:00:22]} dxc4 {[%emt 0:06:55]} 11. Ndxc4 {[%emt 0:02:03]} Be6 {[%emt 0:02:31]} 12. Bf3 {[%emt 0:01:31]} c6 {[%emt 0:05:06]} 13. Qc2 {[%emt 0:03:38]} Na6 {[%emt 0:05:46]} 14. a3 {[%emt 0:02:02]} Bd5 {[%emt 0:06:12]} 15. Rfe1 {[%emt 0:04:36]} Rad8 {[%emt 0:06:23]} 16. Rad1 {[%emt 0:03:21]} Nc7 {[%emt 0:08:11]} 17. Re3 {[%emt 0:03:42]} Ne6 {[%emt 0:01:38]} 18. h3 {[%emt 0:07:40]} Qc7 {[%emt 0:04:58]} 19. b4 {[%emt 0:03:59]} Bxf3 {[%emt 0:04:37]} 20. Nxf3 {[%emt 0:00:28]} Nd5 {[%emt 0:01:47]} 21. Re4 {[%emt 0:01:02]} Nef4 {[%emt 0:01:45]} 22. Rde1 {[%emt 0:01:07]} Qd7 {[%emt 0:03:20]} 23. Ng5 {[%emt 0:02:52]} Ng6 {[%emt 0:02:25]} 24. Rxe8+ {[%emt 0:15:21]} Rxe8 {[%emt 0:00:01]} 25. Rxe8+ {[%emt 0:00:14]} Qxe8 {[%emt 0:00:01]} 26. Qf5 {[%emt 0:00:39]} h6 {[%emt 0:01:57]} 27. Ne4 {[%emt 0:01:13]} Nge7 {[%emt 0:01:10]} 28. Qe5 {[%emt 0:00:42]} Qd8 {[%emt 0:01:14]} 29. Ncd6 {[%emt 0:00:25]} Qc7 {[%emt 0:00:31]} 30. Ng3 {[%emt 0:00:38]} Ng6 {[%emt 0:00:43]} 31. Qe8+ {[%emt 0:00:29]} Nf8 {[%emt 0:00:02]} 32. Ngf5 {[%emt 0:00:22]} Qd7 {[%emt 0:01:09]} 33. Qe5 {[%emt 0:00:50]} Ne6 {[%emt 0:00:14]} 34. Ne4 {[%emt 0:00:53]} Qc7 {[%emt 0:00:47]} 35. Ned6 {[%emt 0:00:43]} Qd7 {[%emt 0:00:16]} 36. b5 {[%emt 0:02:44]} Kf8 {[%emt 0:00:42]} 37. bxc6 {[%emt 0:01:23]} Qxc6 {[%emt 0:00:17]} 38. Ne4 {[%emt 0:00:45]} Qc1+ {[%emt 0:00:26]} 39. Kh2 {[%emt 0:00:10]} Qf4+ {[%emt 0:00:25]} 40. Qxf4 {[%emt 0:00:00]} Ndxf4 {[%emt 0:00:00]} 41. Ned6 {[%emt 0:01:23]} g6 {[%emt 0:03:00]} 42. Nxh6 {[%emt 0:01:14]} Nxd4 {[%emt 0:00:15]} 43. Nxb7 {[%emt 0:01:07]} f5 {[%emt 0:02:52]} 44. Nd6 {[%emt 0:01:35]} Nd3 {[%emt 0:02:11]} 45. Kg1 {[%emt 0:01:25]} Ne5 {[%emt 0:02:21]} 46. f4 {[%emt 0:01:40]} Ne2+ {[%emt 0:00:57]} 47. Kf1 {[%emt 0:02:59]} Nxf4 {[%emt 0:00:15]} 48. a4 {[%emt 0:00:53]} Kg7 {[%emt 0:02:18]} 49. Nhxf5+ {[%emt 0:00:06]} gxf5 {[%emt 0:00:06]} 50. Nxf5+ {[%emt 0:00:03]} Kf6 {[%emt 0:00:23]} 51. Nd4 {[%emt 0:00:27]} Nd5 {[%emt 0:02:32]} 52. Nb5 {[%emt 0:00:27]} a5 {[%emt 0:01:47]} 53. Nd6 {[%emt 0:00:35]} Nb6 {[%emt 0:01:16]} 1/2-1/2

[Event "Polish Youth 1st League 2022"]
[Site "Lublin"]
[Date "2022.06.29"]
[Round "5.28"]
[White "Kowalski, Witold"]
[Black "Oles, Mateusz"]
[Result "1-0"]
[ECO "B71"]
[WhiteElo "1613"]
[BlackElo "1201"]
[Annotator "NA RC"]
[PlyCount "95"]
[EventDate "2022.06.24"]
[EventType "team-tourn"]
[EventCountry "POL"]
[SourceTitle "playchess.com"]
[Source "ChessBase"]
[SourceQuality "1"]
[TimeControl "40/5400+30:1800+30"]

1. e4 {[%emt 0:00:03]} c5 {[%emt 0:00:07]} 2. Nf3 {[%emt 0:00:08]} d6 {[%emt 0:00:06]} 3. d4 {[%emt 0:00:06]} cxd4 {[%emt 0:00:06]} 4. Nxd4 {[%emt 0:00:05]} Nf6 {[%emt 0:00:10]} 5. Nc3 {[%emt 0:00:08]} g6 {[%emt 0:00:24]} 6. f4 {[%emt 0:00:38]} Bg7 {[%emt 0:01:22]} 7. e5 {[%emt 0:00:43]} dxe5 {[%emt 0:11:58]} 8. fxe5 {[%emt 0:00:10]} Ng8 {[%emt 0:05:28]} 9. Bb5+ {[%emt 0:13:03]} Bd7 {[%emt 0:04:54]} 10. Qe2 {[%emt 0:32:59]} Bxb5 {[%emt 0:04:39]} 11. Qxb5+ {[%emt 0:02:38]} Qd7 {[%emt 0:00:21]} 12. Bf4 {[%emt 0:06:56]} a6 {[%emt 0:08:58]} 13. Qxd7+ {[%emt 0:14:07]} Nxd7 {[%emt 0:00:30]} 14. Nd5 {[%emt 0:01:25]} Rc8 {[%emt 0:10:47]} 15. e6 {[%emt 0:17:15]} Ne5 {[%emt 0:23:18]} 16. O-O-O {[%emt 0:01:37]} Bh6 {[%emt 0:04:15]} 17. Rhf1 {[%emt 0:02:31]} f5 {[%emt 0:02:27]} 18. Kb1 {[%emt 0:01:08]} Bxf4 {[%emt 0:00:45]} 19. Rxf4 {[%emt 0:00:11]} Nf6 {[%emt 0:01:51]} 20. Nc3 {[%emt 0:03:54]} O-O {[%emt 0:01:13]} 21. h3 {[%emt 0:00:32]} b5 {[%emt 0:05:21]} 22. a3 {[%emt 0:00:23]} Nc4 {[%emt 0:00:30]} 23. Ka2 {[%emt 0:00:35]} Rc7 {[%emt 0:02:06]} 24. g4 {[%emt 0:00:25]} fxg4 {[%emt 0:00:38]} 25. hxg4 {[%emt 0:00:08]} Ne3 {[%emt 0:00:46]} 26. Rg1 {[%emt 0:00:43]} Rfc8 {[%emt 0:03:08]} 27. g5 {[%emt 0:00:36]} Nfd5 {[%emt 0:00:53]} 28. Nxd5 {[%emt 0:00:32]} Nxd5 {[%emt 0:00:02]} 29. Rf7 {[%emt 0:00:38]} b4 {[%emt 0:01:29]} 30. Rh1 {[%emt 0:00:34]} h5 {[%emt 0:02:04]} 31. gxh6 {[%emt 0:00:26]} bxa3 {[%emt 0:01:18]} 32. Kxa3 {[%emt 0:00:37]} Rc5 {[%emt 0:01:18]} 33. b3 {[%emt 0:00:24]} R5c7 {[%emt 0:03:06]} 34. Rg1 {[%emt 0:00:27]} Nf6 {[%emt 0:00:33]} 35. Rxg6+ {[%emt 0:00:19]} Kh8 {[%emt 0:00:04]} 36. Rgxf6 {[%emt 0:00:44]} exf6 {[%emt 0:00:23]} 37. e7 {[%emt 0:00:07]} Rc3 {[%emt 0:01:11]} 38. Rf8+ {[%emt 0:00:24]} Kh7 39. e8=Q {[%emt 0:00:14]} Rxe8 {[%emt 0:00:54]} 40. Rxe8 {[%emt 0:00:00]} Kxh6 {[%emt 0:00:00]} 41. Re6 {[%emt 0:00:22]} Kg5 {[%emt 0:00:25]} 42. Rxa6 {[%emt 0:00:11]} Rc8 {[%emt 0:03:20]} 43. Ra5+ {[%emt 0:00:47]} Kg6 {[%emt 0:00:15]} 44. c4 {[%emt 0:00:29]} Rf8 {[%emt 0:00:15]} 45. Kb4 {[%emt 0:00:37]} f5 {[%emt 0:00:14]} 46. Rxf5 {[%emt 0:00:06]} Rd8 {[%emt 0:00:24]} 47. Rd5 {[%emt 0:00:12]} Rb8+ {[%emt 0:00:07]} 48. Nb5 {[%emt 0:00:27]} 1-0